Workbook

Sheet Total
A1: KLINIK
A5: DAG | B5: KONTONR | C5: BILAG | D5: TEKST | E5: KASSE | G5: BANK | I5: PATIENT INDBETALING
E6: indtægt | F6: udgift | G6: indtægt | H6: udgift | I6: faktura | J6: beløb
B7: 100 | E7: =IF(ISBLANK(B7),"",SUMPRODUCT(SUMIF(INDIRECT("'"&WsList&"'!B7:B42"),B7,INDIRECT("'"&WsList&"'!E7:E42")))) -> 128 | F7: =IF(ISBLANK(B7),"",SUMPRODUCT(SUMIF(INDIRECT("'"&WsList&"'!B7:B42"),B7,INDIRECT("'"&WsList&"'!F7:F42")))) -> 581 | G7: =IF(ISBLANK(B7),"",SUMPRODUCT(SUMIF(INDIRECT("'"&WsList&"'!B7:B42"),B7,INDIRECT("'"&WsList&"'!G7:G42")))) -> 852 | H7: =IF(ISBLANK(B7),"",SUMPRODUCT(SUMIF(INDIRECT("'"&WsList&"'!B7:B42"),B7,INDIRECT("'"&WsList&"'!H7:H42")))) -> 820
B8: 110 | E8: =IF(ISBLANK(B8),"",SUMPRODUCT(SUMIF(INDIRECT("'"&WsList&"'!B7:B42"),B8,INDIRECT("'"&WsList&"'!E7:E42")))) -> 723 | F8: =IF(ISBLANK(B8),"",SUMPRODUCT(SUMIF(INDIRECT("'"&WsList&"'!B7:B42"),B8,INDIRECT("'"&WsList&"'!F7:F42")))) -> 1705 | G8: =IF(ISBLANK(B8),"",SUMPRODUCT(SUMIF(INDIRECT("'"&WsList&"'!B7:B42"),B8,INDIRECT("'"&WsList&"'!G7:G42")))) -> 1489 | H8: =IF(ISBLANK(B8),"",SUMPRODUCT(SUMIF(INDIRECT("'"&WsList&"'!B7:B42"),B8,INDIRECT("'"&WsList&"'!H7:H42")))) -> 468
B9: 120 | E9: =IF(ISBLANK(B9),"",SUMPRODUCT(SUMIF(INDIRECT("'"&WsList&"'!B7:B42"),B9,INDIRECT("'"&WsList&"'!E7:E42")))) -> 1838 | F9: =IF(ISBLANK(B9),"",SUMPRODUCT(SUMIF(INDIRECT("'"&WsList&"'!B7:B42"),B9,INDIRECT("'"&WsList&"'!F7:F42")))) -> 2147 | G9: =IF(ISBLANK(B9),"",SUMPRODUCT(SUMIF(INDIRECT("'"&WsList&"'!B7:B42"),B9,INDIRECT("'"&WsList&"'!G7:G42")))) -> 2041 | H9: =IF(ISBLANK(B9),"",SUMPRODUCT(SUMIF(INDIRECT("'"&WsList&"'!B7:B42"),B9,INDIRECT("'"&WsList&"'!H7:H42")))) -> 1837
B10: 130 | E10: =IF(ISBLANK(B10),"",SUMPRODUCT(SUMIF(INDIRECT("'"&WsList&"'!B7:B42"),B10,INDIRECT("'"&WsList&"'!E7:E42")))) -> 854 | F10: =IF(ISBLANK(B10),"",SUMPRODUCT(SUMIF(INDIRECT("'"&WsList&"'!B7:B42"),B10,INDIRECT("'"&WsList&"'!F7:F42")))) -> 724 | G10: =IF(ISBLANK(B10),"",SUMPRODUCT(SUMIF(INDIRECT("'"&WsList&"'!B7:B42"),B10,INDIRECT("'"&WsList&"'!G7:G42")))) -> 227 | H10: =IF(ISBLANK(B10),"",SUMPRODUCT(SUMIF(INDIRECT("'"&WsList&"'!B7:B42"),B10,INDIRECT("'"&WsList&"'!H7:H42")))) -> 674
B11: 140 | E11: =IF(ISBLANK(B11),"",SUMPRODUCT(SUMIF(INDIRECT("'"&WsList&"'!B7:B42"),B11,INDIRECT("'"&WsList&"'!E7:E42")))) -> 2875 | F11: =IF(ISBLANK(B11),"",SUMPRODUCT(SUMIF(INDIRECT("'"&WsList&"'!B7:B42"),B11,INDIRECT("'"&WsList&"'!F7:F42")))) -> 2164 | G11: =IF(ISBLANK(B11),"",SUMPRODUCT(SUMIF(INDIRECT("'"&WsList&"'!B7:B42"),B11,INDIRECT("'"&WsList&"'!G7:G42")))) -> 2063 | H11: =IF(ISBLANK(B11),"",SUMPRODUCT(SUMIF(INDIRECT("'"&WsList&"'!B7:B42"),B11,INDIRECT("'"&WsList&"'!H7:H42")))) -> 2136
B12: 150 | E12: =IF(ISBLANK(B12),"",SUMPRODUCT(SUMIF(INDIRECT("'"&WsList&"'!B7:B42"),B12,INDIRECT("'"&WsList&"'!E7:E42")))) -> 2301 | F12: =IF(ISBLANK(B12),"",SUMPRODUCT(SUMIF(INDIRECT("'"&WsList&"'!B7:B42"),B12,INDIRECT("'"&WsList&"'!F7:F42")))) -> 2724 | G12: =IF(ISBLANK(B12),"",SUMPRODUCT(SUMIF(INDIRECT("'"&WsList&"'!B7:B42"),B12,INDIRECT("'"&WsList&"'!G7:G42")))) -> 2571 | H12: =IF(ISBLANK(B12),"",SUMPRODUCT(SUMIF(INDIRECT("'"&WsList&"'!B7:B42"),B12,INDIRECT("'"&WsList&"'!H7:H42")))) -> 3611
B13: 160 | E13: =IF(ISBLANK(B13),"",SUMPRODUCT(SUMIF(INDIRECT("'"&WsList&"'!B7:B42"),B13,INDIRECT("'"&WsList&"'!E7:E42")))) -> 3812 | F13: =IF(ISBLANK(B13),"",SUMPRODUCT(SUMIF(INDIRECT("'"&WsList&"'!B7:B42"),B13,INDIRECT("'"&WsList&"'!F7:F42")))) -> 1651 | G13: =IF(ISBLANK(B13),"",SUMPRODUCT(SUMIF(INDIRECT("'"&WsList&"'!B7:B42"),B13,INDIRECT("'"&WsList&"'!G7:G42")))) -> 1195 | H13: =IF(ISBLANK(B13),"",SUMPRODUCT(SUMIF(INDIRECT("'"&WsList&"'!B7:B42"),B13,INDIRECT("'"&WsList&"'!H7:H42")))) -> 448
B14: 170 | E14: =IF(ISBLANK(B14),"",SUMPRODUCT(SUMIF(INDIRECT("'"&WsList&"'!B7:B42"),B14,INDIRECT("'"&WsList&"'!E7:E42")))) -> 4774 | F14: =IF(ISBLANK(B14),"",SUMPRODUCT(SUMIF(INDIRECT("'"&WsList&"'!B7:B42"),B14,INDIRECT("'"&WsList&"'!F7:F42")))) -> 2034 | G14: =IF(ISBLANK(B14),"",SUMPRODUCT(SUMIF(INDIRECT("'"&WsList&"'!B7:B42"),B14,INDIRECT("'"&WsList&"'!G7:G42")))) -> 2809 | H14: =IF(ISBLANK(B14),"",SUMPRODUCT(SUMIF(INDIRECT("'"&WsList&"'!B7:B42"),B14,INDIRECT("'"&WsList&"'!H7:H42")))) -> 3066
B15: 180 | E15: =IF(ISBLANK(B15),"",SUMPRODUCT(SUMIF(INDIRECT("'"&WsList&"'!B7:B42"),B15,INDIRECT("'"&WsList&"'!E7:E42")))) -> 2196 | F15: =IF(ISBLANK(B15),"",SUMPRODUCT(SUMIF(INDIRECT("'"&WsList&"'!B7:B42"),B15,INDIRECT("'"&WsList&"'!F7:F42")))) -> 1498 | G15: =IF(ISBLANK(B15),"",SUMPRODUCT(SUMIF(INDIRECT("'"&WsList&"'!B7:B42"),B15,INDIRECT("'"&WsList&"'!G7:G42")))) -> 1530 | H15: =IF(ISBLANK(B15),"",SUMPRODUCT(SUMIF(INDIRECT("'"&WsList&"'!B7:B42"),B15,INDIRECT("'"&WsList&"'!H7:H42")))) -> 1128
B16: 190 | E16: =IF(ISBLANK(B16),"",SUMPRODUCT(SUMIF(INDIRECT("'"&WsList&"'!B7:B42"),B16,INDIRECT("'"&WsList&"'!E7:E42")))) -> 1799 | F16: =IF(ISBLANK(B16),"",SUMPRODUCT(SUMIF(INDIRECT("'"&WsList&"'!B7:B42"),B16,INDIRECT("'"&WsList&"'!F7:F42")))) -> 3153 | G16: =IF(ISBLANK(B16),"",SUMPRODUCT(SUMIF(INDIRECT("'"&WsList&"'!B7:B42"),B16,INDIRECT("'"&WsList&"'!G7:G42")))) -> 2405 | H16: =IF(ISBLANK(B16),"",SUMPRODUCT(SUMIF(INDIRECT("'"&WsList&"'!B7:B42"),B16,INDIRECT("'"&WsList&"'!H7:H42")))) -> 1306
B17: 200 | E17: =IF(ISBLANK(B17),"",SUMPRODUCT(SUMIF(INDIRECT("'"&WsList&"'!B7:B42"),B17,INDIRECT("'"&WsList&"'!E7:E42")))) -> 3995 | F17: =IF(ISBLANK(B17),"",SUMPRODUCT(SUMIF(INDIRECT("'"&WsList&"'!B7:B42"),B17,INDIRECT("'"&WsList&"'!F7:F42")))) -> 3049 | G17: =IF(ISBLANK(B17),"",SUMPRODUCT(SUMIF(INDIRECT("'"&WsList&"'!B7:B42"),B17,INDIRECT("'"&WsList&"'!G7:G42")))) -> 2162 | H17: =IF(ISBLANK(B17),"",SUMPRODUCT(SUMIF(INDIRECT("'"&WsList&"'!B7:B42"),B17,INDIRECT("'"&WsList&"'!H7:H42")))) -> 2554
B18: 210 | E18: =IF(ISBLANK(B18),"",SUMPRODUCT(SUMIF(INDIRECT("'"&WsList&"'!B7:B42"),B18,INDIRECT("'"&WsList&"'!E7:E42")))) -> 643 | F18: =IF(ISBLANK(B18),"",SUMPRODUCT(SUMIF(INDIRECT("'"&WsList&"'!B7:B42"),B18,INDIRECT("'"&WsList&"'!F7:F42")))) -> 1754 | G18: =IF(ISBLANK(B18),"",SUMPRODUCT(SUMIF(INDIRECT("'"&WsList&"'!B7:B42"),B18,INDIRECT("'"&WsList&"'!G7:G42")))) -> 1334 | H18: =IF(ISBLANK(B18),"",SUMPRODUCT(SUMIF(INDIRECT("'"&WsList&"'!B7:B42"),B18,INDIRECT("'"&WsList&"'!H7:H42")))) -> 905
B19: 220 | E19: =IF(ISBLANK(B19),"",SUMPRODUCT(SUMIF(INDIRECT("'"&WsList&"'!B7:B42"),B19,INDIRECT("'"&WsList&"'!E7:E42")))) -> 1554 | F19: =IF(ISBLANK(B19),"",SUMPRODUCT(SUMIF(INDIRECT("'"&WsList&"'!B7:B42"),B19,INDIRECT("'"&WsList&"'!F7:F42")))) -> 2179 | G19: =IF(ISBLANK(B19),"",SUMPRODUCT(SUMIF(INDIRECT("'"&WsList&"'!B7:B42"),B19,INDIRECT("'"&WsList&"'!G7:G42")))) -> 1996 | H19: =IF(ISBLANK(B19),"",SUMPRODUCT(SUMIF(INDIRECT("'"&WsList&"'!B7:B42"),B19,INDIRECT("'"&WsList&"'!H7:H42")))) -> 2476
B20: 230 | E20: =IF(ISBLANK(B20),"",SUMPRODUCT(SUMIF(INDIRECT("'"&WsList&"'!B7:B42"),B20,INDIRECT("'"&WsList&"'!E7:E42")))) -> 776 | F20: =IF(ISBLANK(B20),"",SUMPRODUCT(SUMIF(INDIRECT("'"&WsList&"'!B7:B42"),B20,INDIRECT("'"&WsList&"'!F7:F42")))) -> 1258 | G20: =IF(ISBLANK(B20),"",SUMPRODUCT(SUMIF(INDIRECT("'"&WsList&"'!B7:B42"),B20,INDIRECT("'"&WsList&"'!G7:G42")))) -> 1319 | H20: =IF(ISBLANK(B20),"",SUMPRODUCT(SUMIF(INDIRECT("'"&WsList&"'!B7:B42"),B20,INDIRECT("'"&WsList&"'!H7:H42")))) -> 944
E21: =IF(ISBLANK(B21),"",SUMPRODUCT(SUMIF(INDIRECT("'"&WsList&"'!B7:B42"),B21,INDIRECT("'"&WsList&"'!E7:E42")))) ->  | F21: =IF(ISBLANK(B21),"",SUMPRODUCT(SUMIF(INDIRECT("'"&WsList&"'!B7:B42"),B21,INDIRECT("'"&WsList&"'!F7:F42")))) ->  | G21: =IF(ISBLANK(B21),"",SUMPRODUCT(SUMIF(INDIRECT("'"&WsList&"'!B7:B42"),B21,INDIRECT("'"&WsList&"'!G7:G42")))) ->  | H21: =IF(ISBLANK(B21),"",SUMPRODUCT(SUMIF(INDIRECT("'"&WsList&"'!B7:B42"),B21,INDIRECT("'"&WsList&"'!H7:H42")))) -> 
E22: =IF(ISBLANK(B22),"",SUMPRODUCT(SUMIF(INDIRECT("'"&WsList&"'!B7:B42"),B22,INDIRECT("'"&WsList&"'!E7:E42")))) ->  | F22: =IF(ISBLANK(B22),"",SUMPRODUCT(SUMIF(INDIRECT("'"&WsList&"'!B7:B42"),B22,INDIRECT("'"&WsList&"'!F7:F42")))) ->  | G22: =IF(ISBLANK(B22),"",SUMPRODUCT(SUMIF(INDIRECT("'"&WsList&"'!B7:B42"),B22,INDIRECT("'"&WsList&"'!G7:G42")))) ->  | H22: =IF(ISBLANK(B22),"",SUMPRODUCT(SUMIF(INDIRECT("'"&WsList&"'!B7:B42"),B22,INDIRECT("'"&WsList&"'!H7:H42")))) -> 
E23: =IF(ISBLANK(B23),"",SUMPRODUCT(SUMIF(INDIRECT("'"&WsList&"'!B7:B42"),B23,INDIRECT("'"&WsList&"'!E7:E42")))) ->  | F23: =IF(ISBLANK(B23),"",SUMPRODUCT(SUMIF(INDIRECT("'"&WsList&"'!B7:B42"),B23,INDIRECT("'"&WsList&"'!F7:F42")))) ->  | G23: =IF(ISBLANK(B23),"",SUMPRODUCT(SUMIF(INDIRECT("'"&WsList&"'!B7:B42"),B23,INDIRECT("'"&WsList&"'!G7:G42")))) ->  | H23: =IF(ISBLANK(B23),"",SUMPRODUCT(SUMIF(INDIRECT("'"&WsList&"'!B7:B42"),B23,INDIRECT("'"&WsList&"'!H7:H42")))) -> 
E24: =IF(ISBLANK(B24),"",SUMPRODUCT(SUMIF(INDIRECT("'"&WsList&"'!B7:B42"),B24,INDIRECT("'"&WsList&"'!E7:E42")))) ->  | F24: =IF(ISBLANK(B24),"",SUMPRODUCT(SUMIF(INDIRECT("'"&WsList&"'!B7:B42"),B24,INDIRECT("'"&WsList&"'!F7:F42")))) ->  | G24: =IF(ISBLANK(B24),"",SUMPRODUCT(SUMIF(INDIRECT("'"&WsList&"'!B7:B42"),B24,INDIRECT("'"&WsList&"'!G7:G42")))) ->  | H24: =IF(ISBLANK(B24),"",SUMPRODUCT(SUMIF(INDIRECT("'"&WsList&"'!B7:B42"),B24,INDIRECT("'"&WsList&"'!H7:H42")))) -> 
E25: =IF(ISBLANK(B25),"",SUMPRODUCT(SUMIF(INDIRECT("'"&WsList&"'!B7:B42"),B25,INDIRECT("'"&WsList&"'!E7:E42")))) ->  | F25: =IF(ISBLANK(B25),"",SUMPRODUCT(SUMIF(INDIRECT("'"&WsList&"'!B7:B42"),B25,INDIRECT("'"&WsList&"'!F7:F42")))) ->  | G25: =IF(ISBLANK(B25),"",SUMPRODUCT(SUMIF(INDIRECT("'"&WsList&"'!B7:B42"),B25,INDIRECT("'"&WsList&"'!G7:G42")))) ->  | H25: =IF(ISBLANK(B25),"",SUMPRODUCT(SUMIF(INDIRECT("'"&WsList&"'!B7:B42"),B25,INDIRECT("'"&WsList&"'!H7:H42")))) -> 
E26: =IF(ISBLANK(B26),"",SUMPRODUCT(SUMIF(INDIRECT("'"&WsList&"'!B7:B42"),B26,INDIRECT("'"&WsList&"'!E7:E42")))) ->  | F26: =IF(ISBLANK(B26),"",SUMPRODUCT(SUMIF(INDIRECT("'"&WsList&"'!B7:B42"),B26,INDIRECT("'"&WsList&"'!F7:F42")))) ->  | G26: =IF(ISBLANK(B26),"",SUMPRODUCT(SUMIF(INDIRECT("'"&WsList&"'!B7:B42"),B26,INDIRECT("'"&WsList&"'!G7:G42")))) ->  | H26: =IF(ISBLANK(B26),"",SUMPRODUCT(SUMIF(INDIRECT("'"&WsList&"'!B7:B42"),B26,INDIRECT("'"&WsList&"'!H7:H42")))) -> 
E27: =IF(ISBLANK(B27),"",SUMPRODUCT(SUMIF(INDIRECT("'"&WsList&"'!B7:B42"),B27,INDIRECT("'"&WsList&"'!E7:E42")))) ->  | F27: =IF(ISBLANK(B27),"",SUMPRODUCT(SUMIF(INDIRECT("'"&WsList&"'!B7:B42"),B27,INDIRECT("'"&WsList&"'!F7:F42")))) ->  | G27: =IF(ISBLANK(B27),"",SUMPRODUCT(SUMIF(INDIRECT("'"&WsList&"'!B7:B42"),B27,INDIRECT("'"&WsList&"'!G7:G42")))) ->  | H27: =IF(ISBLANK(B27),"",SUMPRODUCT(SUMIF(INDIRECT("'"&WsList&"'!B7:B42"),B27,INDIRECT("'"&WsList&"'!H7:H42")))) -> 
E28: =IF(ISBLANK(B28),"",SUMPRODUCT(SUMIF(INDIRECT("'"&WsList&"'!B7:B42"),B28,INDIRECT("'"&WsList&"'!E7:E42")))) ->  | F28: =IF(ISBLANK(B28),"",SUMPRODUCT(SUMIF(INDIRECT("'"&WsList&"'!B7:B42"),B28,INDIRECT("'"&WsList&"'!F7:F42")))) ->  | G28: =IF(ISBLANK(B28),"",SUMPRODUCT(SUMIF(INDIRECT("'"&WsList&"'!B7:B42"),B28,INDIRECT("'"&WsList&"'!G7:G42")))) ->  | H28: =IF(ISBLANK(B28),"",SUMPRODUCT(SUMIF(INDIRECT("'"&WsList&"'!B7:B42"),B28,INDIRECT("'"&WsList&"'!H7:H42")))) -> 
E29: =IF(ISBLANK(B29),"",SUMPRODUCT(SUMIF(INDIRECT("'"&WsList&"'!B7:B42"),B29,INDIRECT("'"&WsList&"'!E7:E42")))) ->  | F29: =IF(ISBLANK(B29),"",SUMPRODUCT(SUMIF(INDIRECT("'"&WsList&"'!B7:B42"),B29,INDIRECT("'"&WsList&"'!F7:F42")))) ->  | G29: =IF(ISBLANK(B29),"",SUMPRODUCT(SUMIF(INDIRECT("'"&WsList&"'!B7:B42"),B29,INDIRECT("'"&WsList&"'!G7:G42")))) ->  | H29: =IF(ISBLANK(B29),"",SUMPRODUCT(SUMIF(INDIRECT("'"&WsList&"'!B7:B42"),B29,INDIRECT("'"&WsList&"'!H7:H42")))) -> 
E30: =IF(ISBLANK(B30),"",SUMPRODUCT(SUMIF(INDIRECT("'"&WsList&"'!B7:B42"),B30,INDIRECT("'"&WsList&"'!E7:E42")))) ->  | F30: =IF(ISBLANK(B30),"",SUMPRODUCT(SUMIF(INDIRECT("'"&WsList&"'!B7:B42"),B30,INDIRECT("'"&WsList&"'!F7:F42")))) ->  | G30: =IF(ISBLANK(B30),"",SUMPRODUCT(SUMIF(INDIRECT("'"&WsList&"'!B7:B42"),B30,INDIRECT("'"&WsList&"'!G7:G42")))) ->  | H30: =IF(ISBLANK(B30),"",SUMPRODUCT(SUMIF(INDIRECT("'"&WsList&"'!B7:B42"),B30,INDIRECT("'"&WsList&"'!H7:H42")))) -> 
E31: =IF(ISBLANK(B31),"",SUMPRODUCT(SUMIF(INDIRECT("'"&WsList&"'!B7:B42"),B31,INDIRECT("'"&WsList&"'!E7:E42")))) ->  | F31: =IF(ISBLANK(B31),"",SUMPRODUCT(SUMIF(INDIRECT("'"&WsList&"'!B7:B42"),B31,INDIRECT("'"&WsList&"'!F7:F42")))) ->  | G31: =IF(ISBLANK(B31),"",SUMPRODUCT(SUMIF(INDIRECT("'"&WsList&"'!B7:B42"),B31,INDIRECT("'"&WsList&"'!G7:G42")))) ->  | H31: =IF(ISBLANK(B31),"",SUMPRODUCT(SUMIF(INDIRECT("'"&WsList&"'!B7:B42"),B31,INDIRECT("'"&WsList&"'!H7:H42")))) -> 
E32: =IF(ISBLANK(B32),"",SUMPRODUCT(SUMIF(INDIRECT("'"&WsList&"'!B7:B42"),B32,INDIRECT("'"&WsList&"'!E7:E42")))) ->  | F32: =IF(ISBLANK(B32),"",SUMPRODUCT(SUMIF(INDIRECT("'"&WsList&"'!B7:B42"),B32,INDIRECT("'"&WsList&"'!F7:F42")))) ->  | G32: =IF(ISBLANK(B32),"",SUMPRODUCT(SUMIF(INDIRECT("'"&WsList&"'!B7:B42"),B32,INDIRECT("'"&WsList&"'!G7:G42")))) ->  | H32: =IF(ISBLANK(B32),"",SUMPRODUCT(SUMIF(INDIRECT("'"&WsList&"'!B7:B42"),B32,INDIRECT("'"&WsList&"'!H7:H42")))) -> 
E33: =IF(ISBLANK(B33),"",SUMPRODUCT(SUMIF(INDIRECT("'"&WsList&"'!B7:B42"),B33,INDIRECT("'"&WsList&"'!E7:E42")))) ->  | F33: =IF(ISBLANK(B33),"",SUMPRODUCT(SUMIF(INDIRECT("'"&WsList&"'!B7:B42"),B33,INDIRECT("'"&WsList&"'!F7:F42")))) ->  | G33: =IF(ISBLANK(B33),"",SUMPRODUCT(SUMIF(INDIRECT("'"&WsList&"'!B7:B42"),B33,INDIRECT("'"&WsList&"'!G7:G42")))) ->  | H33: =IF(ISBLANK(B33),"",SUMPRODUCT(SUMIF(INDIRECT("'"&WsList&"'!B7:B42"),B33,INDIRECT("'"&WsList&"'!H7:H42")))) -> 
E34: =IF(ISBLANK(B34),"",SUMPRODUCT(SUMIF(INDIRECT("'"&WsList&"'!B7:B42"),B34,INDIRECT("'"&WsList&"'!E7:E42")))) ->  | F34: =IF(ISBLANK(B34),"",SUMPRODUCT(SUMIF(INDIRECT("'"&WsList&"'!B7:B42"),B34,INDIRECT("'"&WsList&"'!F7:F42")))) ->  | G34: =IF(ISBLANK(B34),"",SUMPRODUCT(SUMIF(INDIRECT("'"&WsList&"'!B7:B42"),B34,INDIRECT("'"&WsList&"'!G7:G42")))) ->  | H34: =IF(ISBLANK(B34),"",SUMPRODUCT(SUMIF(INDIRECT("'"&WsList&"'!B7:B42"),B34,INDIRECT("'"&WsList&"'!H7:H42")))) -> 
E35: =IF(ISBLANK(B35),"",SUMPRODUCT(SUMIF(INDIRECT("'"&WsList&"'!B7:B42"),B35,INDIRECT("'"&WsList&"'!E7:E42")))) ->  | F35: =IF(ISBLANK(B35),"",SUMPRODUCT(SUMIF(INDIRECT("'"&WsList&"'!B7:B42"),B35,INDIRECT("'"&WsList&"'!F7:F42")))) ->  | G35: =IF(ISBLANK(B35),"",SUMPRODUCT(SUMIF(INDIRECT("'"&WsList&"'!B7:B42"),B35,INDIRECT("'"&WsList&"'!G7:G42")))) ->  | H35: =IF(ISBLANK(B35),"",SUMPRODUCT(SUMIF(INDIRECT("'"&WsList&"'!B7:B42"),B35,INDIRECT("'"&WsList&"'!H7:H42")))) -> 
E36: =IF(ISBLANK(B36),"",SUMPRODUCT(SUMIF(INDIRECT("'"&WsList&"'!B7:B42"),B36,INDIRECT("'"&WsList&"'!E7:E42")))) ->  | F36: =IF(ISBLANK(B36),"",SUMPRODUCT(SUMIF(INDIRECT("'"&WsList&"'!B7:B42"),B36,INDIRECT("'"&WsList&"'!F7:F42")))) ->  | G36: =IF(ISBLANK(B36),"",SUMPRODUCT(SUMIF(INDIRECT("'"&WsList&"'!B7:B42"),B36,INDIRECT("'"&WsList&"'!G7:G42")))) ->  | H36: =IF(ISBLANK(B36),"",SUMPRODUCT(SUMIF(INDIRECT("'"&WsList&"'!B7:B42"),B36,INDIRECT("'"&WsList&"'!H7:H42")))) -> 
E37: =IF(ISBLANK(B37),"",SUMPRODUCT(SUMIF(INDIRECT("'"&WsList&"'!B7:B42"),B37,INDIRECT("'"&WsList&"'!E7:E42")))) ->  | F37: =IF(ISBLANK(B37),"",SUMPRODUCT(SUMIF(INDIRECT("'"&WsList&"'!B7:B42"),B37,INDIRECT("'"&WsList&"'!F7:F42")))) ->  | G37: =IF(ISBLANK(B37),"",SUMPRODUCT(SUMIF(INDIRECT("'"&WsList&"'!B7:B42"),B37,INDIRECT("'"&WsList&"'!G7:G42")))) ->  | H37: =IF(ISBLANK(B37),"",SUMPRODUCT(SUMIF(INDIRECT("'"&WsList&"'!B7:B42"),B37,INDIRECT("'"&WsList&"'!H7:H42")))) -> 
E38: =IF(ISBLANK(B38),"",SUMPRODUCT(SUMIF(INDIRECT("'"&WsList&"'!B7:B42"),B38,INDIRECT("'"&WsList&"'!E7:E42")))) ->  | F38: =IF(ISBLANK(B38),"",SUMPRODUCT(SUMIF(INDIRECT("'"&WsList&"'!B7:B42"),B38,INDIRECT("'"&WsList&"'!F7:F42")))) ->  | G38: =IF(ISBLANK(B38),"",SUMPRODUCT(SUMIF(INDIRECT("'"&WsList&"'!B7:B42"),B38,INDIRECT("'"&WsList&"'!G7:G42")))) ->  | H38: =IF(ISBLANK(B38),"",SUMPRODUCT(SUMIF(INDIRECT("'"&WsList&"'!B7:B42"),B38,INDIRECT("'"&WsList&"'!H7:H42")))) -> 
E39: =IF(ISBLANK(B39),"",SUMPRODUCT(SUMIF(INDIRECT("'"&WsList&"'!B7:B42"),B39,INDIRECT("'"&WsList&"'!E7:E42")))) ->  | F39: =IF(ISBLANK(B39),"",SUMPRODUCT(SUMIF(INDIRECT("'"&WsList&"'!B7:B42"),B39,INDIRECT("'"&WsList&"'!F7:F42")))) ->  | G39: =IF(ISBLANK(B39),"",SUMPRODUCT(SUMIF(INDIRECT("'"&WsList&"'!B7:B42"),B39,INDIRECT("'"&WsList&"'!G7:G42")))) ->  | H39: =IF(ISBLANK(B39),"",SUMPRODUCT(SUMIF(INDIRECT("'"&WsList&"'!B7:B42"),B39,INDIRECT("'"&WsList&"'!H7:H42")))) -> 
E40: =IF(ISBLANK(B40),"",SUMPRODUCT(SUMIF(INDIRECT("'"&WsList&"'!B7:B42"),B40,INDIRECT("'"&WsList&"'!E7:E42")))) ->  | F40: =IF(ISBLANK(B40),"",SUMPRODUCT(SUMIF(INDIRECT("'"&WsList&"'!B7:B42"),B40,INDIRECT("'"&WsList&"'!F7:F42")))) ->  | G40: =IF(ISBLANK(B40),"",SUMPRODUCT(SUMIF(INDIRECT("'"&WsList&"'!B7:B42"),B40,INDIRECT("'"&WsList&"'!G7:G42")))) ->  | H40: =IF(ISBLANK(B40),"",SUMPRODUCT(SUMIF(INDIRECT("'"&WsList&"'!B7:B42"),B40,INDIRECT("'"&WsList&"'!H7:H42")))) -> 
E41: =IF(ISBLANK(B41),"",SUMPRODUCT(SUMIF(INDIRECT("'"&WsList&"'!B7:B42"),B41,INDIRECT("'"&WsList&"'!E7:E42")))) ->  | F41: =IF(ISBLANK(B41),"",SUMPRODUCT(SUMIF(INDIRECT("'"&WsList&"'!B7:B42"),B41,INDIRECT("'"&WsList&"'!F7:F42")))) ->  | G41: =IF(ISBLANK(B41),"",SUMPRODUCT(SUMIF(INDIRECT("'"&WsList&"'!B7:B42"),B41,INDIRECT("'"&WsList&"'!G7:G42")))) ->  | H41: =IF(ISBLANK(B41),"",SUMPRODUCT(SUMIF(INDIRECT("'"&WsList&"'!B7:B42"),B41,INDIRECT("'"&WsList&"'!H7:H42")))) -> 
E42: =IF(ISBLANK(B42),"",SUMPRODUCT(SUMIF(INDIRECT("'"&WsList&"'!B7:B42"),B42,INDIRECT("'"&WsList&"'!E7:E42")))) ->  | F42: =IF(ISBLANK(B42),"",SUMPRODUCT(SUMIF(INDIRECT("'"&WsList&"'!B7:B42"),B42,INDIRECT("'"&WsList&"'!F7:F42")))) ->  | G42: =IF(ISBLANK(B42),"",SUMPRODUCT(SUMIF(INDIRECT("'"&WsList&"'!B7:B42"),B42,INDIRECT("'"&WsList&"'!G7:G42")))) ->  | H42: =IF(ISBLANK(B42),"",SUMPRODUCT(SUMIF(INDIRECT("'"&WsList&"'!B7:B42"),B42,INDIRECT("'"&WsList&"'!H7:H42")))) -> 
D43: I alt | E43: =SUM(E7:E42) -> 28268 | F43: =SUM(F7:F42) -> 26621 | G43: =SUM(G7:G42) -> 23993 | H43: =SUM(H7:H42) -> 22373
D44: Saldo primo
D45: Saldo ultimo | E45: =E43-F43+F44 -> 1647 | G45: =G43-H43+H44 -> 1620

Sheet 1
A1: KLINIK
A5: DAG | B5: KONTONR | C5: BILAG | D5: TEKST | E5: KASSE | G5: BANK | I5: PATIENT INDBETALING
E6: indtægt | F6: udgift | G6: indtægt | H6: udgift | I6: faktura | J6: beløb
B7: 180 | E7: 670 | F7: 119 | G7: 433 | H7: 490
B8: 140 | E8: 512 | F8: 124 | G8: 473 | H8: 425
B9: 160 | E9: 294 | F9: 945 | G9: 835 | H9: 220
B10: 190 | E10: 727 | F10: 948 | G10: 521 | H10: 435
B11: 200 | E11: 647 | F11: 973 | G11: 801 | H11: 682
B12: 220 | E12: 235 | F12: 546 | G12: 560 | H12: 463
B13: 230 | E13: 109 | F13: 490 | G13: 304 | H13: 544
B14: 210 | E14: 422 | F14: 143 | G14: 804 | H14: 458
B15: 190 | E15: 262 | F15: 799 | G15: 997 | H15: 265
B16: 210 | E16: 114 | F16: 957 | G16: 205 | H16: 248
B17: 130 | E17: 854 | F17: 724 | G17: 227 | H17: 674
B18: 180 | E18: 615 | F18: 876 | G18: 991 | H18: 267
B19: 220 | E19: 489 | F19: 645 | G19: 211 | H19: 747
B20: 160 | E20: 3518 | F20: 706 | G20: 360 | H20: 228
D43: I alt | E43: =SUM(E7:E42) -> 9468 | F43: =SUM(F7:F42) -> 8995 | G43: =SUM(G7:G42) -> 7722 | H43: =SUM(H7:H42) -> 6146
D44: Saldo primo
D45: Saldo ultimo | E45: =E43-F43+F44 -> 473 | G45: =G43-H43+H44 -> 1576

Sheet 2
A1: KLINIK
A5: DAG | B5: KONTONR | C5: BILAG | D5: TEKST | E5: KASSE | G5: BANK | I5: PATIENT INDBETALING
E6: indtægt | F6: udgift | G6: indtægt | H6: udgift | I6: faktura | J6: beløb
B7: 150 | E7: 913 | F7: 949 | G7: 653 | H7: 954
B8: 170 | E8: 583 | F8: 542 | G8: 846 | H8: 873
B9: 190 | E9: 631 | F9: 481 | G9: 704 | H9: 282
B10: 230 | E10: 391 | F10: 423 | G10: 540 | H10: 201
B11: 220 | E11: 171 | F11: 352 | G11: 975 | H11: 359
B12: 150 | E12: 568 | F12: 804 | G12: 422 | H12: 887
B13: 120 | E13: 525 | F13: 809 | G13: 661 | H13: 721
B14: 230 | E14: 276 | F14: 345 | G14: 475 | H14: 199
B15: 100 | E15: 128 | F15: 581 | G15: 852 | H15: 820
B16: 140 | E16: 900 | F16: 261 | G16: 521 | H16: 596
B17: 150 | E17: 410 | F17: 204 | G17: 570 | H17: 812
B18: 190 | E18: 179 | F18: 925 | G18: 183 | H18: 324
B19: 200 | E19: 536 | F19: 474 | G19: 365 | H19: 641
B20: 200 | E20: 2413 | F20: 839 | G20: 860 | H20: 294
D43: I alt | E43: =SUM(E7:E42) -> 8624 | F43: =SUM(F7:F42) -> 7989 | G43: =SUM(G7:G42) -> 8627 | H43: =SUM(H7:H42) -> 7963
D44: Saldo primo | F44: =PreviousSheet(E45) -> 473 | H44: =PreviousSheet(G45) -> 1576
D45: Saldo ultimo | E45: =E43-F43+F44 -> 1108 | G45: =G43-H43+H44 -> 2240

Sheet 3
A1: KLINIK
A5: DAG | B5: KONTONR | C5: BILAG | D5: TEKST | E5: KASSE | G5: BANK | I5: PATIENT INDBETALING
E6: indtægt | F6: udgift | G6: indtægt | H6: udgift | I6: faktura | J6: beløb
B7: 150 | E7: 410 | F7: 767 | G7: 926 | H7: 958
B8: 120 | E8: 556 | F8: 354 | G8: 720 | H8: 943
B9: 140 | E9: 707 | F9: 863 | G9: 914 | H9: 142
B10: 170 | E10: 886 | F10: 381 | G10: 745 | H10: 641
B11: 120 | E11: 757 | F11: 984 | G11: 660 | H11: 173
B12: 110 | E12: 172 | F12: 947 | G12: 984 | H12: 218
B13: 180 | E13: 911 | F13: 503 | G13: 106 | H13: 371
B14: 140 | E14: 756 | F14: 916 | G14: 155 | H14: 973
B15: 200 | E15: 399 | F15: 763 | G15: 136 | H15: 937
B16: 220 | E16: 659 | F16: 636 | G16: 250 | H16: 907
B17: 210 | E17: 107 | F17: 654 | G17: 325 | H17: 199
B18: 170 | E18: 330 | F18: 847 | G18: 573 | H18: 628
B19: 110 | E19: 551 | F19: 758 | G19: 505 | H19: 250
B20: 170 | E20: 2975 | F20: 264 | G20: 645 | H20: 924
D43: I alt | E43: =SUM(E7:E42) -> 10176 | F43: =SUM(F7:F42) -> 9637 | G43: =SUM(G7:G42) -> 7644 | H43: =SUM(H7:H42) -> 8264
D44: Saldo primo | F44: =PreviousSheet(E45) -> 1108 | H44: =PreviousSheet(G45) -> 2240
D45: Saldo ultimo | E45: =E43-F43+F44 -> 1647 | G45: =G43-H43+H44 -> 1620

Sheet 4
A1: KLINIK
A5: DAG | B5: KONTONR | C5: BILAG | D5: TEKST | E5: KASSE | G5: BANK | I5: PATIENT INDBETALING
E6: indtægt | F6: udgift | G6: indtægt | H6: udgift | I6: faktura | J6: beløb
D43: I alt | E43: =SUM(E7:E42) -> 0 | F43: =SUM(F7:F42) -> 0 | G43: =SUM(G7:G42) -> 0 | H43: =SUM(H7:H42) -> 0
D44: Saldo primo | F44: =PreviousSheet(E45) -> -2353 | H44: =PreviousSheet(G45) -> 1620
D45: Saldo ultimo | E45: =E43-F43+F44 -> -2353 | G45: =G43-H43+H44 -> 1620

Sheet 5
A1: KLINIK
A5: DAG | B5: KONTONR | C5: BILAG | D5: TEKST | E5: KASSE | G5: BANK | I5: PATIENT INDBETALING
E6: indtægt | F6: udgift | G6: indtægt | H6: udgift | I6: faktura | J6: beløb
D43: I alt | E43: =SUM(E7:E42) -> 0 | F43: =SUM(F7:F42) -> 0 | G43: =SUM(G7:G42) -> 0 | H43: =SUM(H7:H42) -> 0
D44: Saldo primo | F44: =PreviousSheet(E45) -> -2353 | H44: =PreviousSheet(G45) -> 1620
D45: Saldo ultimo | E45: =E43-F43+F44 -> -2353 | G45: =G43-H43+H44 -> 1620

Sheet 6
A1: KLINIK
A5: DAG | B5: KONTONR | C5: BILAG | D5: TEKST | E5: KASSE | G5: BANK | I5: PATIENT INDBETALING
E6: indtægt | F6: udgift | G6: indtægt | H6: udgift | I6: faktura | J6: beløb
D43: I alt | E43: =SUM(E7:E42) -> 0 | F43: =SUM(F7:F42) -> 0 | G43: =SUM(G7:G42) -> 0 | H43: =SUM(H7:H42) -> 0
D44: Saldo primo | F44: =PreviousSheet(E45) -> -2353 | H44: =PreviousSheet(G45) -> 1620
D45: Saldo ultimo | E45: =E43-F43+F44 -> -2353 | G45: =G43-H43+H44 -> 1620

Sheet 7
A1: KLINIK
A5: DAG | B5: KONTONR | C5: BILAG | D5: TEKST | E5: KASSE | G5: BANK | I5: PATIENT INDBETALING
E6: indtægt | F6: udgift | G6: indtægt | H6: udgift | I6: faktura | J6: beløb
D43: I alt | E43: =SUM(E7:E42) -> 0 | F43: =SUM(F7:F42) -> 0 | G43: =SUM(G7:G42) -> 0 | H43: =SUM(H7:H42) -> 0
D44: Saldo primo | F44: =PreviousSheet(E45) -> -2353 | H44: =PreviousSheet(G45) -> 1620
D45: Saldo ultimo | E45: =E43-F43+F44 -> -2353 | G45: =G43-H43+H44 -> 1620

Sheet 8
A1: KLINIK
A5: DAG | B5: KONTONR | C5: BILAG | D5: TEKST | E5: KASSE | G5: BANK | I5: PATIENT INDBETALING
E6: indtægt | F6: udgift | G6: indtægt | H6: udgift | I6: faktura | J6: beløb
D43: I alt | E43: =SUM(E7:E42) -> 0 | F43: =SUM(F7:F42) -> 0 | G43: =SUM(G7:G42) -> 0 | H43: =SUM(H7:H42) -> 0
D44: Saldo primo | F44: =PreviousSheet(E45) -> -2353 | H44: =PreviousSheet(G45) -> 1620
D45: Saldo ultimo | E45: =E43-F43+F44 -> -2353 | G45: =G43-H43+H44 -> 1620

Sheet 9
A1: KLINIK
A5: DAG | B5: KONTONR | C5: BILAG | D5: TEKST | E5: KASSE | G5: BANK | I5: PATIENT INDBETALING
E6: indtægt | F6: udgift | G6: indtægt | H6: udgift | I6: faktura | J6: beløb
D43: I alt | E43: =SUM(E7:E42) -> 0 | F43: =SUM(F7:F42) -> 0 | G43: =SUM(G7:G42) -> 0 | H43: =SUM(H7:H42) -> 0
D44: Saldo primo | F44: =PreviousSheet(E45) -> -2353 | H44: =PreviousSheet(G45) -> 1620
D45: Saldo ultimo | E45: =E43-F43+F44 -> -2353 | G45: =G43-H43+H44 -> 1620

Sheet 10
A1: KLINIK
A5: DAG | B5: KONTONR | C5: BILAG | D5: TEKST | E5: KASSE | G5: BANK | I5: PATIENT INDBETALING
E6: indtægt | F6: udgift | G6: indtægt | H6: udgift | I6: faktura | J6: beløb
D43: I alt | E43: =SUM(E7:E42) -> 0 | F43: =SUM(F7:F42) -> 0 | G43: =SUM(G7:G42) -> 0 | H43: =SUM(H7:H42) -> 0
D44: Saldo primo | F44: =PreviousSheet(E45) -> -2353 | H44: =PreviousSheet(G45) -> 1620
D45: Saldo ultimo | E45: =E43-F43+F44 -> -2353 | G45: =G43-H43+H44 -> 1620

Sheet 11
A1: KLINIK
A5: DAG | B5: KONTONR | C5: BILAG | D5: TEKST | E5: KASSE | G5: BANK | I5: PATIENT INDBETALING
E6: indtægt | F6: udgift | G6: indtægt | H6: udgift | I6: faktura | J6: beløb
D43: I alt | E43: =SUM(E7:E42) -> 0 | F43: =SUM(F7:F42) -> 0 | G43: =SUM(G7:G42) -> 0 | H43: =SUM(H7:H42) -> 0
D44: Saldo primo | F44: =PreviousSheet(E45) -> -2353 | H44: =PreviousSheet(G45) -> 1620
D45: Saldo ultimo | E45: =E43-F43+F44 -> -2353 | G45: =G43-H43+H44 -> 1620

Sheet 12
A1: KLINIK
A5: DAG | B5: KONTONR | C5: BILAG | D5: TEKST | E5: KASSE | G5: BANK | I5: PATIENT INDBETALING
E6: indtægt | F6: udgift | G6: indtægt | H6: udgift | I6: faktura | J6: beløb
D43: I alt | E43: =SUM(E7:E42) -> 0 | F43: =SUM(F7:F42) -> 0 | G43: =SUM(G7:G42) -> 0 | H43: =SUM(H7:H42) -> 0
D44: Saldo primo | F44: =PreviousSheet(E45) -> -2353 | H44: =PreviousSheet(G45) -> 1620
D45: Saldo ultimo | E45: =E43-F43+F44 -> -2353 | G45: =G43-H43+H44 -> 1620

Sheet 13
A1: KLINIK
A5: DAG | B5: KONTONR | C5: BILAG | D5: TEKST | E5: KASSE | G5: BANK | I5: PATIENT INDBETALING
E6: indtægt | F6: udgift | G6: indtægt | H6: udgift | I6: faktura | J6: beløb
D43: I alt | E43: =SUM(E7:E42) -> 0 | F43: =SUM(F7:F42) -> 0 | G43: =SUM(G7:G42) -> 0 | H43: =SUM(H7:H42) -> 0
D44: Saldo primo | F44: =PreviousSheet(E45) -> -2353 | H44: =PreviousSheet(G45) -> 1620
D45: Saldo ultimo | E45: =E43-F43+F44 -> -2353 | G45: =G43-H43+H44 -> 1620

Sheet 14
A1: KLINIK
A5: DAG | B5: KONTONR | C5: BILAG | D5: TEKST | E5: KASSE | G5: BANK | I5: PATIENT INDBETALING
E6: indtægt | F6: udgift | G6: indtægt | H6: udgift | I6: faktura | J6: beløb
D43: I alt | E43: =SUM(E7:E42) -> 0 | F43: =SUM(F7:F42) -> 0 | G43: =SUM(G7:G42) -> 0 | H43: =SUM(H7:H42) -> 0
D44: Saldo primo | F44: =PreviousSheet(E45) -> -2353 | H44: =PreviousSheet(G45) -> 1620
D45: Saldo ultimo | E45: =E43-F43+F44 -> -2353 | G45: =G43-H43+H44 -> 1620

Sheet 15
A1: KLINIK
A5: DAG | B5: KONTONR | C5: BILAG | D5: TEKST | E5: KASSE | G5: BANK | I5: PATIENT INDBETALING
E6: indtægt | F6: udgift | G6: indtægt | H6: udgift | I6: faktura | J6: beløb
D43: I alt | E43: =SUM(E7:E42) -> 0 | F43: =SUM(F7:F42) -> 0 | G43: =SUM(G7:G42) -> 0 | H43: =SUM(H7:H42) -> 0
D44: Saldo primo | F44: =PreviousSheet(E45) -> -2353 | H44: =PreviousSheet(G45) -> 1620
D45: Saldo ultimo | E45: =E43-F43+F44 -> -2353 | G45: =G43-H43+H44 -> 1620

Sheet 16
A1: KLINIK
A5: DAG | B5: KONTONR | C5: BILAG | D5: TEKST | E5: KASSE | G5: BANK | I5: PATIENT INDBETALING
E6: indtægt | F6: udgift | G6: indtægt | H6: udgift | I6: faktura | J6: beløb
D43: I alt | E43: =SUM(E7:E42) -> 0 | F43: =SUM(F7:F42) -> 0 | G43: =SUM(G7:G42) -> 0 | H43: =SUM(H7:H42) -> 0
D44: Saldo primo | F44: =PreviousSheet(E45) -> -2353 | H44: =PreviousSheet(G45) -> 1620
D45: Saldo ultimo | E45: =E43-F43+F44 -> -2353 | G45: =G43-H43+H44 -> 1620

Sheet 17
A1: KLINIK
A5: DAG | B5: KONTONR | C5: BILAG | D5: TEKST | E5: KASSE | G5: BANK | I5: PATIENT INDBETALING
E6: indtægt | F6: udgift | G6: indtægt | H6: udgift | I6: faktura | J6: beløb
D43: I alt | E43: =SUM(E7:E42) -> 0 | F43: =SUM(F7:F42) -> 0 | G43: =SUM(G7:G42) -> 0 | H43: =SUM(H7:H42) -> 0
D44: Saldo primo | F44: =PreviousSheet(E45) -> -2353 | H44: =PreviousSheet(G45) -> 1620
D45: Saldo ultimo | E45: =E43-F43+F44 -> -2353 | G45: =G43-H43+H44 -> 1620

Sheet 18
A1: KLINIK
A5: DAG | B5: KONTONR | C5: BILAG | D5: TEKST | E5: KASSE | G5: BANK | I5: PATIENT INDBETALING
E6: indtægt | F6: udgift | G6: indtægt | H6: udgift | I6: faktura | J6: beløb
D43: I alt | E43: =SUM(E7:E42) -> 0 | F43: =SUM(F7:F42) -> 0 | G43: =SUM(G7:G42) -> 0 | H43: =SUM(H7:H42) -> 0
D44: Saldo primo | F44: =PreviousSheet(E45) -> -2353 | H44: =PreviousSheet(G45) -> 1620
D45: Saldo ultimo | E45: =E43-F43+F44 -> -2353 | G45: =G43-H43+H44 -> 1620

Sheet 19
A1: KLINIK
A5: DAG | B5: KONTONR | C5: BILAG | D5: TEKST | E5: KASSE | G5: BANK | I5: PATIENT INDBETALING
E6: indtægt | F6: udgift | G6: indtægt | H6: udgift | I6: faktura | J6: beløb
D43: I alt | E43: =SUM(E7:E42) -> 0 | F43: =SUM(F7:F42) -> 0 | G43: =SUM(G7:G42) -> 0 | H43: =SUM(H7:H42) -> 0
D44: Saldo primo | F44: =PreviousSheet(E45) -> -2353 | H44: =PreviousSheet(G45) -> 1620
D45: Saldo ultimo | E45: =E43-F43+F44 -> -2353 | G45: =G43-H43+H44 -> 1620

Sheet 20
A1: KLINIK
A5: DAG | B5: KONTONR | C5: BILAG | D5: TEKST | E5: KASSE | G5: BANK | I5: PATIENT INDBETALING
E6: indtægt | F6: udgift | G6: indtægt | H6: udgift | I6: faktura | J6: beløb
D43: I alt | E43: =SUM(E7:E42) -> 0 | F43: =SUM(F7:F42) -> 0 | G43: =SUM(G7:G42) -> 0 | H43: =SUM(H7:H42) -> 0
D44: Saldo primo | F44: =PreviousSheet(E45) -> -2353 | H44: =PreviousSheet(G45) -> 1620
D45: Saldo ultimo | E45: =E43-F43+F44 -> -2353 | G45: =G43-H43+H44 -> 1620

Sheet 21
A1: KLINIK
A5: DAG | B5: KONTONR | C5: BILAG | D5: TEKST | E5: KASSE | G5: BANK | I5: PATIENT INDBETALING
E6: indtægt | F6: udgift | G6: indtægt | H6: udgift | I6: faktura | J6: beløb
D43: I alt | E43: =SUM(E7:E42) -> 0 | F43: =SUM(F7:F42) -> 0 | G43: =SUM(G7:G42) -> 0 | H43: =SUM(H7:H42) -> 0
D44: Saldo primo | F44: =PreviousSheet(E45) -> -2353 | H44: =PreviousSheet(G45) -> 1620
D45: Saldo ultimo | E45: =E43-F43+F44 -> -2353 | G45: =G43-H43+H44 -> 1620

Sheet 22
A1: KLINIK
A5: DAG | B5: KONTONR | C5: BILAG | D5: TEKST | E5: KASSE | G5: BANK | I5: PATIENT INDBETALING
E6: indtægt | F6: udgift | G6: indtægt | H6: udgift | I6: faktura | J6: beløb
D43: I alt | E43: =SUM(E7:E42) -> 0 | F43: =SUM(F7:F42) -> 0 | G43: =SUM(G7:G42) -> 0 | H43: =SUM(H7:H42) -> 0
D44: Saldo primo | F44: =PreviousSheet(E45) -> -2353 | H44: =PreviousSheet(G45) -> 1620
D45: Saldo ultimo | E45: =E43-F43+F44 -> -2353 | G45: =G43-H43+H44 -> 1620

Sheet 23
A1: KLINIK
A5: DAG | B5: KONTONR | C5: BILAG | D5: TEKST | E5: KASSE | G5: BANK | I5: PATIENT INDBETALING
E6: indtægt | F6: udgift | G6: indtægt | H6: udgift | I6: faktura | J6: beløb
D43: I alt | E43: =SUM(E7:E42) -> 0 | F43: =SUM(F7:F42) -> 0 | G43: =SUM(G7:G42) -> 0 | H43: =SUM(H7:H42) -> 0
D44: Saldo primo | F44: =PreviousSheet(E45) -> -2353 | H44: =PreviousSheet(G45) -> 1620
D45: Saldo ultimo | E45: =E43-F43+F44 -> -2353 | G45: =G43-H43+H44 -> 1620

Sheet 24
A1: KLINIK
A5: DAG | B5: KONTONR | C5: BILAG | D5: TEKST | E5: KASSE | G5: BANK | I5: PATIENT INDBETALING
E6: indtægt | F6: udgift | G6: indtægt | H6: udgift | I6: faktura | J6: beløb
D43: I alt | E43: =SUM(E7:E42) -> 0 | F43: =SUM(F7:F42) -> 0 | G43: =SUM(G7:G42) -> 0 | H43: =SUM(H7:H42) -> 0
D44: Saldo primo | F44: =PreviousSheet(E45) -> -2353 | H44: =PreviousSheet(G45) -> 1620
D45: Saldo ultimo | E45: =E43-F43+F44 -> -2353 | G45: =G43-H43+H44 -> 1620

Sheet 25
A1: KLINIK
A5: DAG | B5: KONTONR | C5: BILAG | D5: TEKST | E5: KASSE | G5: BANK | I5: PATIENT INDBETALING
E6: indtægt | F6: udgift | G6: indtægt | H6: udgift | I6: faktura | J6: beløb
D43: I alt | E43: =SUM(E7:E42) -> 0 | F43: =SUM(F7:F42) -> 0 | G43: =SUM(G7:G42) -> 0 | H43: =SUM(H7:H42) -> 0
D44: Saldo primo | F44: =PreviousSheet(E45) -> -2353 | H44: =PreviousSheet(G45) -> 1620
D45: Saldo ultimo | E45: =E43-F43+F44 -> -2353 | G45: =G43-H43+H44 -> 1620

Sheet 26
A1: KLINIK
A5: DAG | B5: KONTONR | C5: BILAG | D5: TEKST | E5: KASSE | G5: BANK | I5: PATIENT INDBETALING
E6: indtægt | F6: udgift | G6: indtægt | H6: udgift | I6: faktura | J6: beløb
D43: I alt | E43: =SUM(E7:E42) -> 0 | F43: =SUM(F7:F42) -> 0 | G43: =SUM(G7:G42) -> 0 | H43: =SUM(H7:H42) -> 0
D44: Saldo primo | F44: =PreviousSheet(E45) -> -2353 | H44: =PreviousSheet(G45) -> 1620
D45: Saldo ultimo | E45: =E43-F43+F44 -> -2353 | G45: =G43-H43+H44 -> 1620

Sheet 27
A1: KLINIK
A5: DAG | B5: KONTONR | C5: BILAG | D5: TEKST | E5: KASSE | G5: BANK | I5: PATIENT INDBETALING
E6: indtægt | F6: udgift | G6: indtægt | H6: udgift | I6: faktura | J6: beløb
D43: I alt | E43: =SUM(E7:E42) -> 0 | F43: =SUM(F7:F42) -> 0 | G43: =SUM(G7:G42) -> 0 | H43: =SUM(H7:H42) -> 0
D44: Saldo primo | F44: =PreviousSheet(E45) -> -2353 | H44: =PreviousSheet(G45) -> 1620
D45: Saldo ultimo | E45: =E43-F43+F44 -> -2353 | G45: =G43-H43+H44 -> 1620

Sheet 28
A1: KLINIK
A5: DAG | B5: KONTONR | C5: BILAG | D5: TEKST | E5: KASSE | G5: BANK | I5: PATIENT INDBETALING
E6: indtægt | F6: udgift | G6: indtægt | H6: udgift | I6: faktura | J6: beløb
D43: I alt | E43: =SUM(E7:E42) -> 0 | F43: =SUM(F7:F42) -> 0 | G43: =SUM(G7:G42) -> 0 | H43: =SUM(H7:H42) -> 0
D44: Saldo primo | F44: =PreviousSheet(E45) -> -2353 | H44: =PreviousSheet(G45) -> 1620
D45: Saldo ultimo | E45: =E43-F43+F44 -> -2353 | G45: =G43-H43+H44 -> 1620

Sheet 29
A1: KLINIK
A5: DAG | B5: KONTONR | C5: BILAG | D5: TEKST | E5: KASSE | G5: BANK | I5: PATIENT INDBETALING
E6: indtægt | F6: udgift | G6: indtægt | H6: udgift | I6: faktura | J6: beløb
D43: I alt | E43: =SUM(E7:E42) -> 0 | F43: =SUM(F7:F42) -> 0 | G43: =SUM(G7:G42) -> 0 | H43: =SUM(H7:H42) -> 0
D44: Saldo primo | F44: =PreviousSheet(E45) -> -2353 | H44: =PreviousSheet(G45) -> 1620
D45: Saldo ultimo | E45: =E43-F43+F44 -> -2353 | G45: =G43-H43+H44 -> 1620

Sheet 30
A1: KLINIK
A5: DAG | B5: KONTONR | C5: BILAG | D5: TEKST | E5: KASSE | G5: BANK | I5: PATIENT INDBETALING
E6: indtægt | F6: udgift | G6: indtægt | H6: udgift | I6: faktura | J6: beløb
D43: I alt | E43: =SUM(E7:E42) -> 0 | F43: =SUM(F7:F42) -> 0 | G43: =SUM(G7:G42) -> 0 | H43: =SUM(H7:H42) -> 0
D44: Saldo primo | F44: =PreviousSheet(E45) -> -2353 | H44: =PreviousSheet(G45) -> 1620
D45: Saldo ultimo | E45: =E43-F43+F44 -> -2353 | G45: =G43-H43+H44 -> 1620

Sheet 31
A1: KLINIK
A5: DAG | B5: KONTONR | C5: BILAG | D5: TEKST | E5: KASSE | G5: BANK | I5: PATIENT INDBETALING
E6: indtægt | F6: udgift | G6: indtægt | H6: udgift | I6: faktura | J6: beløb
D43: I alt | E43: =SUM(E7:E42) -> 0 | F43: =SUM(F7:F42) -> 0 | G43: =SUM(G7:G42) -> 0 | H43: =SUM(H7:H42) -> 0
D44: Saldo primo | F44: =PreviousSheet(E45) -> -2353 | H44: =PreviousSheet(G45) -> 1620
D45: Saldo ultimo | E45: =E43-F43+F44 -> -2353 | G45: =G43-H43+H44 -> 1620

Sheet 32
A1: KLINIK
A5: DAG | B5: KONTONR | C5: BILAG | D5: TEKST | E5: KASSE | G5: BANK | I5: PATIENT INDBETALING
E6: indtægt | F6: udgift | G6: indtægt | H6: udgift | I6: faktura | J6: beløb
D43: I alt | E43: =SUM(E7:E42) -> 0 | F43: =SUM(F7:F42) -> 0 | G43: =SUM(G7:G42) -> 0 | H43: =SUM(H7:H42) -> 0
D44: Saldo primo | F44: =PreviousSheet(E45) -> -2353 | H44: =PreviousSheet(G45) -> 1620
D45: Saldo ultimo | E45: =E43-F43+F44 -> -2353 | G45: =G43-H43+H44 -> 1620

Sheet 33
A1: KLINIK
A5: DAG | B5: KONTONR | C5: BILAG | D5: TEKST | E5: KASSE | G5: BANK | I5: PATIENT INDBETALING
E6: indtægt | F6: udgift | G6: indtægt | H6: udgift | I6: faktura | J6: beløb
D43: I alt | E43: =SUM(E7:E42) -> 0 | F43: =SUM(F7:F42) -> 0 | G43: =SUM(G7:G42) -> 0 | H43: =SUM(H7:H42) -> 0
D44: Saldo primo | F44: =PreviousSheet(E45) -> -2353 | H44: =PreviousSheet(G45) -> 1620
D45: Saldo ultimo | E45: =E43-F43+F44 -> -2353 | G45: =G43-H43+H44 -> 1620

Sheet 34
A1: KLINIK
A5: DAG | B5: KONTONR | C5: BILAG | D5: TEKST | E5: KASSE | G5: BANK | I5: PATIENT INDBETALING
E6: indtægt | F6: udgift | G6: indtægt | H6: udgift | I6: faktura | J6: beløb
D43: I alt | E43: =SUM(E7:E42) -> 0 | F43: =SUM(F7:F42) -> 0 | G43: =SUM(G7:G42) -> 0 | H43: =SUM(H7:H42) -> 0
D44: Saldo primo | F44: =PreviousSheet(E45) -> -2353 | H44: =PreviousSheet(G45) -> 1620
D45: Saldo ultimo | E45: =E43-F43+F44 -> -2353 | G45: =G43-H43+H44 -> 1620

Sheet 35
A1: KLINIK
A5: DAG | B5: KONTONR | C5: BILAG | D5: TEKST | E5: KASSE | G5: BANK | I5: PATIENT INDBETALING
E6: indtægt | F6: udgift | G6: indtægt | H6: udgift | I6: faktura | J6: beløb
D43: I alt | E43: =SUM(E7:E42) -> 0 | F43: =SUM(F7:F42) -> 0 | G43: =SUM(G7:G42) -> 0 | H43: =SUM(H7:H42) -> 0
D44: Saldo primo | F44: =PreviousSheet(E45) -> -2353 | H44: =PreviousSheet(G45) -> 1620
D45: Saldo ultimo | E45: =E43-F43+F44 -> -2353 | G45: =G43-H43+H44 -> 1620

Sheet 36
A1: KLINIK
A5: DAG | B5: KONTONR | C5: BILAG | D5: TEKST | E5: KASSE | G5: BANK | I5: PATIENT INDBETALING
E6: indtægt | F6: udgift | G6: indtægt | H6: udgift | I6: faktura | J6: beløb
D43: I alt | E43: =SUM(E7:E42) -> 0 | F43: =SUM(F7:F42) -> 0 | G43: =SUM(G7:G42) -> 0 | H43: =SUM(H7:H42) -> 0
D44: Saldo primo | F44: =PreviousSheet(E45) -> -2353 | H44: =PreviousSheet(G45) -> 1620
D45: Saldo ultimo | E45: =E43-F43+F44 -> -2353 | G45: =G43-H43+H44 -> 1620

Sheet 37
A1: KLINIK
A5: DAG | B5: KONTONR | C5: BILAG | D5: TEKST | E5: KASSE | G5: BANK | I5: PATIENT INDBETALING
E6: indtægt | F6: udgift | G6: indtægt | H6: udgift | I6: faktura | J6: beløb
D43: I alt | E43: =SUM(E7:E42) -> 0 | F43: =SUM(F7:F42) -> 0 | G43: =SUM(G7:G42) -> 0 | H43: =SUM(H7:H42) -> 0
D44: Saldo primo | F44: =PreviousSheet(E45) -> -2353 | H44: =PreviousSheet(G45) -> 1620
D45: Saldo ultimo | E45: =E43-F43+F44 -> -2353 | G45: =G43-H43+H44 -> 1620

Sheet 38
A1: KLINIK
A5: DAG | B5: KONTONR | C5: BILAG | D5: TEKST | E5: KASSE | G5: BANK | I5: PATIENT INDBETALING
E6: indtægt | F6: udgift | G6: indtægt | H6: udgift | I6: faktura | J6: beløb
D43: I alt | E43: =SUM(E7:E42) -> 0 | F43: =SUM(F7:F42) -> 0 | G43: =SUM(G7:G42) -> 0 | H43: =SUM(H7:H42) -> 0
D44: Saldo primo | F44: =PreviousSheet(E45) -> -2353 | H44: =PreviousSheet(G45) -> 1620
D45: Saldo ultimo | E45: =E43-F43+F44 -> -2353 | G45: =G43-H43+H44 -> 1620

Sheet 39
A1: KLINIK
A5: DAG | B5: KONTONR | C5: BILAG | D5: TEKST | E5: KASSE | G5: BANK | I5: PATIENT INDBETALING
E6: indtægt | F6: udgift | G6: indtægt | H6: udgift | I6: faktura | J6: beløb
D43: I alt | E43: =SUM(E7:E42) -> 0 | F43: =SUM(F7:F42) -> 0 | G43: =SUM(G7:G42) -> 0 | H43: =SUM(H7:H42) -> 0
D44: Saldo primo | F44: =PreviousSheet(E45) -> -2353 | H44: =PreviousSheet(G45) -> 1620
D45: Saldo ultimo | E45: =E43-F43+F44 -> -2353 | G45: =G43-H43+H44 -> 1620

Sheet 40
A1: KLINIK
A5: DAG | B5: KONTONR | C5: BILAG | D5: TEKST | E5: KASSE | G5: BANK | I5: PATIENT INDBETALING
E6: indtægt | F6: udgift | G6: indtægt | H6: udgift | I6: faktura | J6: beløb
D43: I alt | E43: =SUM(E7:E42) -> 0 | F43: =SUM(F7:F42) -> 0 | G43: =SUM(G7:G42) -> 0 | H43: =SUM(H7:H42) -> 0
D44: Saldo primo | F44: =PreviousSheet(E45) -> -2353 | H44: =PreviousSheet(G45) -> 1620
D45: Saldo ultimo | E45: =E43-F43+F44 -> -2353 | G45: =G43-H43+H44 -> 1620

Sheet 41
A1: KLINIK
A5: DAG | B5: KONTONR | C5: BILAG | D5: TEKST | E5: KASSE | G5: BANK | I5: PATIENT INDBETALING
E6: indtægt | F6: udgift | G6: indtægt | H6: udgift | I6: faktura | J6: beløb
D43: I alt | E43: =SUM(E7:E42) -> 0 | F43: =SUM(F7:F42) -> 0 | G43: =SUM(G7:G42) -> 0 | H43: =SUM(H7:H42) -> 0
D44: Saldo primo | F44: =PreviousSheet(E45) -> -2353 | H44: =PreviousSheet(G45) -> 1620
D45: Saldo ultimo | E45: =E43-F43+F44 -> -2353 | G45: =G43-H43+H44 -> 1620

Sheet 42
A1: KLINIK
A5: DAG | B5: KONTONR | C5: BILAG | D5: TEKST | E5: KASSE | G5: BANK | I5: PATIENT INDBETALING
E6: indtægt | F6: udgift | G6: indtægt | H6: udgift | I6: faktura | J6: beløb
D43: I alt | E43: =SUM(E7:E42) -> 0 | F43: =SUM(F7:F42) -> 0 | G43: =SUM(G7:G42) -> 0 | H43: =SUM(H7:H42) -> 0
D44: Saldo primo | F44: =PreviousSheet(E45) -> -2353 | H44: =PreviousSheet(G45) -> 1620
D45: Saldo ultimo | E45: =E43-F43+F44 -> -2353 | G45: =G43-H43+H44 -> 1620

Sheet 43
A1: KLINIK
A5: DAG | B5: KONTONR | C5: BILAG | D5: TEKST | E5: KASSE | G5: BANK | I5: PATIENT INDBETALING
E6: indtægt | F6: udgift | G6: indtægt | H6: udgift | I6: faktura | J6: beløb
D43: I alt | E43: =SUM(E7:E42) -> 0 | F43: =SUM(F7:F42) -> 0 | G43: =SUM(G7:G42) -> 0 | H43: =SUM(H7:H42) -> 0
D44: Saldo primo | F44: =PreviousSheet(E45) -> -2353 | H44: =PreviousSheet(G45) -> 1620
D45: Saldo ultimo | E45: =E43-F43+F44 -> -2353 | G45: =G43-H43+H44 -> 1620

Sheet 44
A1: KLINIK
A5: DAG | B5: KONTONR | C5: BILAG | D5: TEKST | E5: KASSE | G5: BANK | I5: PATIENT INDBETALING
E6: indtægt | F6: udgift | G6: indtægt | H6: udgift | I6: faktura | J6: beløb
D43: I alt | E43: =SUM(E7:E42) -> 0 | F43: =SUM(F7:F42) -> 0 | G43: =SUM(G7:G42) -> 0 | H43: =SUM(H7:H42) -> 0
D44: Saldo primo | F44: =PreviousSheet(E45) -> -2353 | H44: =PreviousSheet(G45) -> 1620
D45: Saldo ultimo | E45: =E43-F43+F44 -> -2353 | G45: =G43-H43+H44 -> 1620

Sheet 45
A1: KLINIK
A5: DAG | B5: KONTONR | C5: BILAG | D5: TEKST | E5: KASSE | G5: BANK | I5: PATIENT INDBETALING
E6: indtægt | F6: udgift | G6: indtægt | H6: udgift | I6: faktura | J6: beløb
D43: I alt | E43: =SUM(E7:E42) -> 0 | F43: =SUM(F7:F42) -> 0 | G43: =SUM(G7:G42) -> 0 | H43: =SUM(H7:H42) -> 0
D44: Saldo primo | F44: =PreviousSheet(E45) -> -2353 | H44: =PreviousSheet(G45) -> 1620
D45: Saldo ultimo | E45: =E43-F43+F44 -> -2353 | G45: =G43-H43+H44 -> 1620

Sheet 46
A1: KLINIK
A5: DAG | B5: KONTONR | C5: BILAG | D5: TEKST | E5: KASSE | G5: BANK | I5: PATIENT INDBETALING
E6: indtægt | F6: udgift | G6: indtægt | H6: udgift | I6: faktura | J6: beløb
D43: I alt | E43: =SUM(E7:E42) -> 0 | F43: =SUM(F7:F42) -> 0 | G43: =SUM(G7:G42) -> 0 | H43: =SUM(H7:H42) -> 0
D44: Saldo primo | F44: =PreviousSheet(E45) -> -2353 | H44: =PreviousSheet(G45) -> 1620
D45: Saldo ultimo | E45: =E43-F43+F44 -> -2353 | G45: =G43-H43+H44 -> 1620

Sheet 47
A1: KLINIK
A5: DAG | B5: KONTONR | C5: BILAG | D5: TEKST | E5: KASSE | G5: BANK | I5: PATIENT INDBETALING
E6: indtægt | F6: udgift | G6: indtægt | H6: udgift | I6: faktura | J6: beløb
D43: I alt | E43: =SUM(E7:E42) -> 0 | F43: =SUM(F7:F42) -> 0 | G43: =SUM(G7:G42) -> 0 | H43: =SUM(H7:H42) -> 0
D44: Saldo primo | F44: =PreviousSheet(E45) -> -2353 | H44: =PreviousSheet(G45) -> 1620
D45: Saldo ultimo | E45: =E43-F43+F44 -> -2353 | G45: =G43-H43+H44 -> 1620

Sheet 48
A1: KLINIK
A5: DAG | B5: KONTONR | C5: BILAG | D5: TEKST | E5: KASSE | G5: BANK | I5: PATIENT INDBETALING
E6: indtægt | F6: udgift | G6: indtægt | H6: udgift | I6: faktura | J6: beløb
D43: I alt | E43: =SUM(E7:E42) -> 0 | F43: =SUM(F7:F42) -> 0 | G43: =SUM(G7:G42) -> 0 | H43: =SUM(H7:H42) -> 0
D44: Saldo primo | F44: =PreviousSheet(E45) -> -2353 | H44: =PreviousSheet(G45) -> 1620
D45: Saldo ultimo | E45: =E43-F43+F44 -> -2353 | G45: =G43-H43+H44 -> 1620

Sheet 49
A1: KLINIK
A5: DAG | B5: KONTONR | C5: BILAG | D5: TEKST | E5: KASSE | G5: BANK | I5: PATIENT INDBETALING
E6: indtægt | F6: udgift | G6: indtægt | H6: udgift | I6: faktura | J6: beløb
D43: I alt | E43: =SUM(E7:E42) -> 0 | F43: =SUM(F7:F42) -> 0 | G43: =SUM(G7:G42) -> 0 | H43: =SUM(H7:H42) -> 0
D44: Saldo primo | F44: =PreviousSheet(E45) -> -2353 | H44: =PreviousSheet(G45) -> 1620
D45: Saldo ultimo | E45: =E43-F43+F44 -> -2353 | G45: =G43-H43+H44 -> 1620

Sheet 50
A1: KLINIK
A5: DAG | B5: KONTONR | C5: BILAG | D5: TEKST | E5: KASSE | G5: BANK | I5: PATIENT INDBETALING
E6: indtægt | F6: udgift | G6: indtægt | H6: udgift | I6: faktura | J6: beløb
D43: I alt | E43: =SUM(E7:E42) -> 0 | F43: =SUM(F7:F42) -> 0 | G43: =SUM(G7:G42) -> 0 | H43: =SUM(H7:H42) -> 0
D44: Saldo primo | F44: =PreviousSheet(E45) -> -2353 | H44: =PreviousSheet(G45) -> 1620
D45: Saldo ultimo | E45: =E43-F43+F44 -> -2353 | G45: =G43-H43+H44 -> 1620
